fUSD/lending_fUSD_20250209
["ID","MTS","AMOUNT","RATE_DAILY","PERIOD"]
[352383797,1739069459813,-540.702,0.00010855,2]
[352383798,1739069459823,-4036.804,0.00010855,2]
[352383799,1739069459832,-3933.989,0.00010855,2]
[352383800,1739069459842,-151.52,0.00010855,2]
[352383801,1739069459853,-333.533,0.00010855,2]
[352383802,1739069459863,-150.203,0.00010855,2]
[352383803,1739069459872,-279.635,0.00010855,2]
[352383804,1739069459881,-150.0,0.00010855,2]
[352383805,1739069459891,-1239.0,0.00010856,2]
[352383806,1739069459901,-150.0,0.00010857,2]
[352383807,1739069459911,-18402.1257688,0.00010859,2]
[352383808,1739069459920,-556.38052737,0.00010867,2]
[352383809,1739069459930,-200.0,0.00010868,2]
[352383810,1739069459939,-18402.1257688,0.00010869,2]
[352383811,1739069459949,-47560.8799241,0.00010873,2]
[352383812,1739069459960,-150.0,0.00010875,2]
[352383813,1739069459969,-995.5,0.0001088,2]
[352383814,1739069459979,-754.344585,0.0001088,2]
[352383815,1739069459988,-837.418506,0.0001088,2]
[352383816,1739069459998,-571.5,0.0001088,2]
[352383817,1739069460008,-1439.98,0.0001088,2]
[352383818,1739069460018,-1335.02,0.0001088,2]
[352383819,1739069460028,-559.11,0.0001088,2]
[352383820,1739069460039,-1093.73,0.0001088,2]
[352383821,1739069460049,-803.53,0.0001088,2]
[352383822,1739069460060,-1890.81,0.0001088,2]
[352383823,1739069460070,-1559.98,0.0001088,2]
[352383824,1739069460081,-967.4,0.0001088,2]
[352383825,1739069460091,-1029.95,0.0001088,2]
[352383826,1739069460100,-920.97,0.0001088,2]
[352383827,1739069460110,-1867.45,0.0001088,2]
[352383828,1739069460120,-789.25,0.0001088,2]
[352383829,1739069460130,-3744.99,0.0001088,2]
[352383830,1739069460140,-1560.02,0.0001088,2]
[352383831,1739069460150,-500.0,0.0001088,2]
[352383832,1739069460160,-736.32,0.0001088,2]
[352383833,1739069460171,-2494.58,0.0001088,2]
[352383834,1739069460181,-947.08,0.0001088,2]
[352383835,1739069460192,-1906.86,0.0001088,2]
[352383836,1739069460203,-1559.78,0.0001088,2]
[352383837,1739069460213,-3359.76,0.0001088,2]
[352383838,1739069460223,-1389.48,0.0001088,2]
[352383839,1739069460236,-1064.16,0.0001088,2]
[352383840,1739069460246,-630.3,0.0001088,2]
[352383841,1739069460256,-999.14,0.0001088,2]
[352383842,1739069460267,-500.0,0.0001088,2]
[352383843,1739069460279,-1578.2,0.0001088,2]
[352383844,1739069460289,-1129.0,0.0001088,2]
[352383845,1739069460299,-1301.09,0.0001088,2]
[352383846,1739069460310,-1291.18,0.0001088,2]
[352383847,1739069460322,-1876.52,0.0001088,2]
[352383848,1739069460332,-1866.23,0.0001088,2]
[352383849,1739069460342,-2220.41,0.0001088,2]
[352383850,1739069460352,-1564.75,0.0001088,2]
[352383851,1739069460367,-926.11,0.0001088,2]
[352383852,1739069460376,-1329.14,0.0001088,2]
[352383853,1739069460387,-2507.15,0.0001088,2]
[352383854,1739069460397,-587.83,0.0001088,2]
[352383855,1739069460407,-853.77,0.0001088,2]
[352383856,1739069460417,-1628.99,0.0001088,2]
[352383857,1739069460427,-500.0,0.0001088,2]
[352383858,1739069460438,-954.02,0.0001088,2]
[352383859,1739069460448,-938.82,0.0001088,2]
[352383860,1739069460458,-1573.35,0.0001088,2]
[352383861,1739069460469,-500.0,0.0001088,2]
[352383862,1739069460638,-1805.8,0.0001088,2]
[352383863,1739069460649,-774.74,0.0001088,2]
[352383864,1739069460658,-611.09,0.0001088,2]
[352383865,1739069460667,-500.0,0.0001088,2]
[352383866,1739069460676,-556.38052737,0.00010886,2]
[352383867,1739069460685,-556.38052737,0.00010887,2]
[352383868,1739069460695,-47560.8799241,0.00010888,2]
[352383869,1739069460705,-556.38052737,0.0001089,2]
[352383870,1739069460714,-200.0,0.00010896,2]
[352383871,1739069460723,-1000.0,0.000109,3]
[352383872,1739069460733,-162.48928726,0.000109,2]
[352383873,1739069460743,-162.48928721,0.000109,2]
[352383874,1739069460752,-162.48928721,0.000109,2]
[352383875,1739069460762,-162.48928721,0.000109,2]
[352383876,1739069460773,-151.09,0.00010901,2]
[352383877,1739069460783,-150.0,0.0001091,2]
[352383878,1739069460793,-500.0,0.00010947,2]
[352383879,1739069460802,-812.04,0.00010947,2]
[352383880,1739069460811,-500.0,0.00010947,2]
[352383881,1739069460821,-650.98,0.00010947,2]
[352383882,1739069460830,-725.66,0.00010947,2]
[352383883,1739069460840,-626.3,0.00010947,2]
[352383884,1739069460849,-686.17,0.00010947,2]
[352383885,1739069460859,-751.94,0.00010947,2]
[352383886,1739069460869,-500.0,0.00010947,2]
[352383887,1739069460878,-809.56,0.00010947,2]
[352383888,1739069460888,-500.0,0.00010947,2]
[352383889,1739069460897,-850.73,0.00010947,2]
[352383890,1739069460907,-810.94,0.00010947,2]
[352383891,1739069460916,-500.0,0.00010947,2]
[352383892,1739069460925,-500.0,0.00010947,2]
[352383893,1739069460934,-819.57,0.00010947,2]
[352383894,1739069460943,-556.76,0.00010947,2]
[352383895,1739069460953,-881.6,0.00010947,2]
[352383896,1739069460962,-822.99,0.00010947,2]
[352383897,1739069460971,-720.56,0.00010947,2]
[352383898,1739069460980,-695.07,0.00010947,2]
[352383899,1739069460989,-788.71,0.00010947,2]
[352383900,1739069460998,-793.3,0.00010947,2]
[352383901,1739069461007,-500.0,0.00010947,2]
[352383902,1739069461017,-775.16,0.00010947,2]
[352383903,1739069461027,-760.1,0.00010947,2]
[352383904,1739069461036,-646.22,0.00010947,2]
[352383905,1739069461046,-500.0,0.00010947,2]
[352383906,1739069461055,-500.0,0.00010947,2]
[352383907,1739069461064,-1572.53,0.00010947,2]
[352383908,1739069461074,-1155.73,0.00010947,2]
[352383909,1739069461084,-858.34,0.00010947,2]
[352383910,1739069461095,-500.0,0.00010947,2]
[352383911,1739069461105,-1151.5,0.00010947,2]
[352383912,1739069461114,-782.41,0.00010947,2]
[352383913,1739069461124,-1084.12,0.00010947,2]
[352383914,1739069461134,-500.0,0.00010947,2]
[352383915,1739069461143,-667.59,0.00010947,2]
[352383916,1739069461153,-2395.35,0.00010947,2]
[352383917,1739069461163,-608.93,0.00010947,2]
[352383918,1739069461172,-1744.39,0.00010947,2]
[352383919,1739069461181,-713.37,0.00010947,2]
[352383920,1739069461190,-1920.7,0.00010947,2]
[352383921,1739069461199,-1775.02,0.00010947,2]
[352383922,1739069461209,-500.0,0.00010947,2]
[352383923,1739069461219,-998.71,0.00010947,2]
[352383924,1739069461229,-674.24,0.00010947,2]
[352383925,1739069461242,-1286.34,0.00010947,2]
[352383926,1739069461252,-785.89,0.00010947,2]
[352383927,1739069461262,-1431.71,0.00010947,2]
[352383928,1739069461272,-2291.65,0.00010947,2]
[352383929,1739069461282,-500.0,0.00010947,2]
[352383930,1739069461291,-531.34,0.00010947,2]
[352383931,1739069461302,-984.4,0.00010947,2]
[352383932,1739069461311,-918.47,0.00010947,2]
[352383933,1739069461322,-500.0,0.00010947,2]
[352383934,1739069461332,-1681.15,0.00010947,2]
[352383935,1739069461342,-586.82,0.00010947,2]
[352383936,1739069461352,-652.27,0.00010947,2]
[352383937,1739069461361,-906.36,0.00010947,2]
[352383938,1739069461371,-2072.47,0.00010947,2]
[352383939,1739069461380,-545.48,0.00010947,2]
[352383940,1739069461390,-852.61,0.00010947,2]
[352383941,1739069461399,-500.0,0.00010947,2]
[352383942,1739069461410,-1204.52,0.00010947,2]
[352383943,1739069461419,-581.58,0.00010947,2]
[352383944,1739069461428,-1195.82,0.00010947,2]
[352383945,1739069461438,-500.0,0.00010947,2]
[352383946,1739069461447,-1261.96,0.00010947,2]
[352383947,1739069461457,-1407.94,0.00010947,2]
[352383948,1739069461466,-885.46,0.00010947,2]
[352383949,1739069461475,-378.22,0.00010948,2]
[352383950,1739069461485,-4677.96,0.00010948,2]
[352383951,1739069461495,-1113.07,0.00010948,2]
[352383952,1739069461504,-1207.41,0.00010948,2]
[352383953,1739069461514,-1237.76,0.00010948,2]
[352383954,1739069461524,-701.32,0.00010948,2]
[352383955,1739069461533,-2295.98,0.00010948,2]
[352383956,1739069461543,-918.0,0.00010948,2]
[352383957,1739069461552,-974.27,0.00010948,2]
[352383958,1739069461562,-1487.4,0.00010948,2]
[352383959,1739069461572,-1078.29,0.00010948,2]
[352383960,1739069461581,-1542.41,0.00010948,2]
[352383961,1739069461591,-1875.97,0.00010948,2]
[352383962,1739069461601,-500.0,0.00010958,2]
[352383963,1739069461610,-500.0,0.00010958,2]
[352383964,1739069461620,-282.98450571,0.00010958,2]
[352383965,1739069461629,-500.0,0.00010958,2]
[352383966,1739069461639,-500.0,0.00010958,2]
[352383967,1739069461648,-500.0,0.00010958,2]
[352383968,1739069461658,-500.0,0.00010958,2]
[352383969,1739069461667,-500.0,0.00010958,2]
[352383970,1739069461676,-500.0,0.00010958,2]
[352383971,1739069461686,-500.0,0.00010958,2]
[352383972,1739069461695,-500.0,0.00010958,2]
[352383973,1739069461704,-420.58558278,0.00010958,2]
[352383974,1739069461714,-500.0,0.00010958,2]
[352383975,1739069461723,-500.0,0.00010958,2]
[352383976,1739069461733,-500.0,0.00010958,2]
[352383977,1739069461742,-500.0,0.00010958,2]
[352383978,1739069461751,-500.0,0.00010958,2]
[352383979,1739069461761,-500.0,0.00010958,2]
[352383980,1739069461770,-500.0,0.00010958,2]
[352383981,1739069461781,-500.0,0.00010958,2]
[352383982,1739069461790,-500.0,0.00010958,2]
[352383983,1739069461800,-500.0,0.00010958,2]
[352383984,1739069461810,-500.0,0.00010958,2]
[352383985,1739069461819,-500.0,0.00010958,2]
[352383986,1739069461828,-500.0,0.00010958,2]
[352383987,1739069461837,-500.0,0.00010958,2]
[352383988,1739069461846,-538.05218647,0.00010958,2]
[352383989,1739069461855,-500.0,0.00010958,2]
[352383990,1739069461864,-500.0,0.00010958,2]
[352383991,1739069461874,-500.0,0.00010958,2]
[352383992,1739069461883,-500.0,0.00010958,2]
[352383993,1739069461892,-579.76,0.00010958,2]
[352383994,1739069461902,-500.0,0.00010958,2]
[352383995,1739069461911,-576.76,0.00010958,2]
[352383996,1739069461920,-500.0,0.00010958,2]
[352383997,1739069461930,-585.88,0.00010958,2]
[352383998,1739069461939,-651.15,0.00010958,2]
[352383999,1739069461948,-500.0,0.00010958,2]
[352384000,1739069461957,-500.0,0.00010958,2]
[352384001,1739069461967,-500.0,0.00010958,2]
[352384002,1739069461976,-500.0,0.00010958,2]
[352384003,1739069461985,-500.0,0.00010958,2]
[352384004,1739069461995,-792.41,0.00010958,2]
[352384005,1739069462005,-500.0,0.00010958,2]
[352384006,1739069462015,-948.02,0.00010958,2]
[352384007,1739069462024,-500.0,0.00010958,2]
[352384008,1739069462034,-816.74,0.00010958,2]
[352384009,1739069462044,-500.0,0.00010958,2]
[352384010,1739069462054,-500.0,0.00010958,2]
[352384011,1739069462063,-150.0,0.00010959,2]
[352384012,1739069462073,-150.0,0.00010966,2]
[352384013,1739069462082,-150.43,0.00010974,2]
[352384014,1739069462091,-150.0,0.00010974,2]
[352384015,1739069462100,-150.0,0.00010974,2]
[352384016,1739069462110,-150.0,0.00010974,2]
[352384017,1739069462119,-150.0,0.00010974,2]
[352384018,1739069462129,-150.0,0.00010974,2]
[352384019,1739069462138,-150.0,0.00010974,2]
[352384020,1739069462147,-701.32,0.00010999,2]
[352384021,1739069462157,-701.32,0.00010999,2]
[352384022,1739069462166,-701.32,0.00010999,2]
[352384023,1739069462176,-701.32,0.00010999,2]
[352384024,1739069462186,-701.44919115,0.00010999,2]
[352384025,1739069462195,-150.0,0.00011,2]
[352384026,1739069462205,-2214.8378345,0.00011008,2]
[352384027,1739069462214,-995.5,0.00011016,2]
[352384028,1739069462224,-754.344585,0.00011016,2]
[352384029,1739069462233,-837.418506,0.00011016,2]
[352384030,1739069462245,-571.5,0.00011016,2]
[352384031,1739069462255,-1439.98,0.00011016,2]
[352384032,1739069462264,-1335.02,0.00011016,2]
[352384033,1739069462274,-559.11,0.00011016,2]
[352384034,1739069462286,-1093.73,0.00011016,2]
[352384035,1739069462295,-803.53,0.00011016,2]
[352384036,1739069462305,-1890.81,0.00011016,2]
[352384037,1739069462316,-1559.98,0.00011016,2]
[352384038,1739069462326,-967.4,0.00011016,2]
[352384039,1739069462341,-1029.95,0.00011016,2]
[352384040,1739069462355,-920.97,0.00011016,2]
[352384041,1739069462368,-1867.45,0.00011016,2]
[352384042,1739069462380,-789.25,0.00011016,2]
[352384043,1739069462393,-3744.99,0.00011016,2]
[352384044,1739069462407,-1560.02,0.00011016,2]
[352384045,1739069462420,-500.0,0.00011016,2]
[352384046,1739069462433,-736.32,0.00011016,2]
[352384047,1739069462447,-2494.58,0.00011016,2]
[352384048,1739069462460,-947.08,0.00011016,2]
[352384049,1739069462471,-1906.86,0.00011016,2]
[352384050,1739069462483,-1559.78,0.00011016,2]
[352384051,1739069462496,-3359.76,0.00011016,2]
[352384052,1739069462508,-1389.48,0.00011016,2]
[352384053,1739069462522,-1064.16,0.00011016,2]
[352384054,1739069462535,-630.3,0.00011016,2]
[352384055,1739069462549,-999.14,0.00011016,2]
[352384056,1739069462562,-291.55048112,0.00011016,2]
[352384057,1739069462575,-1578.2,0.00011016,2]
[352384058,1739069462589,-1129.0,0.00011016,2]
[352384059,1739069462603,-1301.09,0.00011016,2]
[352384060,1739069462616,-1291.18,0.00011016,2]
[352384061,1739069462628,-1876.52,0.00011016,2]
[352384062,1739069462641,-1866.23,0.00011016,2]
[352384063,1739069462655,-2220.41,0.00011016,2]
[352384064,1739069462667,-1564.75,0.00011016,2]
[352384065,1739069462681,-926.11,0.00011016,2]
[352384066,1739069462691,-1329.14,0.00011016,2]
[352384067,1739069462705,-2507.15,0.00011016,2]
[352384068,1739069462717,-587.83,0.00011016,2]
[352384069,1739069462734,-853.77,0.00011016,2]
[352384070,1739069462746,-1628.99,0.00011016,2]
[352384071,1739069462757,-248.99140179,0.00011016,2]
[352384072,1739069462768,-954.02,0.00011016,2]
[352384073,1739069462780,-938.82,0.00011016,2]
[352384074,1739069462795,-1573.35,0.00011016,2]
[352384075,1739069462806,-500.0,0.00011016,2]
[352384076,1739069462816,-1805.8,0.00011016,2]
[352384077,1739069462827,-774.74,0.00011016,2]
[352384078,1739069462838,-611.09,0.00011016,2]
[352384079,1739069462850,-500.0,0.00011016,2]
[352384080,1739069462861,-150.0,0.00011028,2]
[352384081,1739069462872,-302562.78775389,0.00011032,2]
[352384082,1739069462883,-150.0,0.00011033,2]
[352384083,1739069462894,-3808.15,0.00011045,2]
[352384084,1739069462906,-186.796,0.00011045,2]
[352384085,1739069462918,-1000.0,0.00011048,2]
[352384086,1739069462930,-500.0,0.00011084,2]
[352384087,1739069462941,-812.04,0.00011084,2]
[352384088,1739069462952,-500.0,0.00011084,2]
[352384089,1739069462963,-650.98,0.00011084,2]
[352384090,1739069462976,-725.66,0.00011084,2]
[352384091,1739069462988,-626.3,0.00011084,2]
[352384092,1739069462999,-686.17,0.00011084,2]
[352384093,1739069463010,-751.94,0.00011084,2]
[352384094,1739069463021,-315.63989531,0.00011084,2]
[352384095,1739069463033,-809.56,0.00011084,2]
[352384096,1739069463044,-500.0,0.00011084,2]
[352384097,1739069463056,-850.73,0.00011084,2]
[352384098,1739069463068,-810.94,0.00011084,2]
[352384099,1739069463079,-500.0,0.00011084,2]
[352384100,1739069463091,-500.0,0.00011084,2]
[352384101,1739069463104,-819.57,0.00011084,2]
[352384102,1739069463117,-556.76,0.00011084,2]
[352384103,1739069463128,-881.6,0.00011084,2]
[352384104,1739069463140,-822.99,0.00011084,2]
[352384105,1739069463153,-720.56,0.00011084,2]
[352384106,1739069463165,-695.07,0.00011084,2]
[352384107,1739069463177,-788.71,0.00011084,2]
[352384108,1739069463189,-793.3,0.00011084,2]
[352384109,1739069463201,-364.50915511,0.00011084,2]
[352384110,1739069463213,-775.16,0.00011084,2]
[352384111,1739069463224,-760.1,0.00011084,2]
[352384112,1739069463238,-646.22,0.00011084,2]
[352384113,1739069463250,-500.0,0.00011084,2]
[352384114,1739069463262,-500.0,0.00011084,2]
[352384115,1739069463273,-1572.53,0.00011084,2]
[352384116,1739069463286,-1155.73,0.00011084,2]
[352384117,1739069463298,-858.34,0.00011084,2]
[352384118,1739069463310,-500.0,0.00011084,2]
[352384119,1739069463323,-1151.5,0.00011084,2]
[352384120,1739069463335,-782.41,0.00011084,2]
[352384121,1739069463347,-1084.12,0.00011084,2]
[352384122,1739069463360,-500.0,0.00011084,2]
[352384123,1739069463372,-667.59,0.00011084,2]
[352384124,1739069463384,-2395.35,0.00011084,2]
[352384125,1739069463395,-608.93,0.00011084,2]
[352384126,1739069463407,-1744.39,0.00011084,2]
[352384127,1739069463419,-713.37,0.00011084,2]
[352384128,1739069463430,-1920.7,0.00011084,2]
[352384129,1739069463443,-1775.02,0.00011084,2]
[352384130,1739069463454,-500.0,0.00011084,2]
[352384131,1739069463467,-998.71,0.00011084,2]
[352384132,1739069463478,-674.24,0.00011084,2]
[352384133,1739069463489,-1286.34,0.00011084,2]
[352384134,1739069463501,-785.89,0.00011084,2]
[352384135,1739069463512,-1431.71,0.00011084,2]
[352384136,1739069463524,-2291.65,0.00011084,2]
[352384137,1739069463536,-500.0,0.00011084,2]
[352384138,1739069463547,-531.34,0.00011084,2]
[352384139,1739069463559,-984.4,0.00011084,2]
[352384140,1739069463571,-918.47,0.00011084,2]
[352384141,1739069463583,-500.0,0.00011084,2]
[352384142,1739069463594,-1681.15,0.00011084,2]
[352384143,1739069463606,-586.82,0.00011084,2]
[352384144,1739069463618,-652.27,0.00011084,2]
[352384145,1739069463629,-906.36,0.00011084,2]
[352384146,1739069463641,-2072.47,0.00011084,2]
[352384147,1739069463652,-545.48,0.00011084,2]
[352384148,1739069463664,-852.61,0.00011084,2]
[352384149,1739069463676,-500.0,0.00011084,2]
[352384150,1739069463688,-1204.52,0.00011084,2]
[352384151,1739069463702,-581.58,0.00011084,2]
[352384152,1739069463713,-1195.82,0.00011084,2]
[352384153,1739069463725,-500.0,0.00011084,2]
[352384154,1739069463737,-1261.96,0.00011084,2]
[352384155,1739069463749,-1407.94,0.00011084,2]
[352384156,1739069463761,-885.46,0.00011084,2]
[352384157,1739069463774,-4677.96,0.00011085,2]
[352384158,1739069463787,-1113.07,0.00011085,2]
[352384159,1739069463800,-1207.41,0.00011085,2]
[352384160,1739069463812,-1237.76,0.00011085,2]
[352384161,1739069463823,-2295.98,0.00011085,2]
[352384162,1739069463837,-918.0,0.00011085,2]
[352384163,1739069463850,-974.27,0.00011085,2]
[352384164,1739069463862,-1487.4,0.00011085,2]
[352384165,1739069463875,-1078.29,0.00011085,2]
[352384166,1739069463888,-1542.41,0.00011085,2]
[352384167,1739069463901,-1875.97,0.00011085,2]
[352384168,1739069463910,-431.7357272,0.0001109,2]
[352384169,1739069463920,-278.67534094,0.00011095,2]
[352384170,1739069463930,-500.0,0.00011095,2]
[352384171,1739069463939,-181.14586269,0.00011095,2]
[352384172,1739069463948,-500.0,0.00011095,2]
[352384173,1739069463958,-500.0,0.00011095,2]
[352384174,1739069463967,-246.2774591,0.00011095,2]
[352384175,1739069463976,-500.0,0.00011095,2]
[352384176,1739069463986,-300.52148867,0.00011095,2]
[352384177,1739069463995,-265.67372488,0.00011095,2]
[352384178,1739069464006,-500.0,0.00011095,2]
[352384179,1739069464017,-349.12234016,0.00011095,2]
[352384180,1739069464026,-500.0,0.00011095,2]
[352384181,1739069464035,-500.0,0.00011095,2]
[352384182,1739069464045,-500.0,0.00011095,2]
[352384183,1739069464054,-500.0,0.00011095,2]
[352384184,1739069464064,-283.70149876,0.00011095,2]
[352384185,1739069464074,-500.0,0.00011095,2]
[352384186,1739069464083,-500.0,0.00011095,2]
[352384187,1739069464092,-500.0,0.00011095,2]
[352384188,1739069464102,-500.0,0.00011095,2]
[352384189,1739069464111,-376.24684072,0.00011095,2]
[352384190,1739069464121,-500.0,0.00011095,2]
[352384191,1739069464130,-371.43402473,0.00011095,2]
[352384192,1739069464139,-242.53032571,0.00011095,2]
[352384193,1739069464148,-500.0,0.00011095,2]
[352384194,1739069464157,-500.0,0.00011095,2]
[352384195,1739069464166,-500.0,0.00011095,2]
[352384196,1739069464176,-579.76,0.00011095,2]
[352384197,1739069464185,-605.22053846,0.00011095,2]
[352384198,1739069464197,-576.76,0.00011095,2]
[352384199,1739069464206,-284.93524074,0.00011095,2]
[352384200,1739069464216,-585.88,0.00011095,2]
[352384201,1739069464225,-651.15,0.00011095,2]
[352384202,1739069464236,-500.0,0.00011095,2]
[352384203,1739069464249,-500.0,0.00011095,2]
[352384204,1739069464258,-500.0,0.00011095,2]
[352384205,1739069464268,-500.0,0.00011095,2]
[352384206,1739069464279,-500.0,0.00011095,2]
[352384207,1739069464289,-792.41,0.00011095,2]
[352384208,1739069464299,-500.0,0.00011095,2]
[352384209,1739069464308,-948.02,0.00011095,2]
[352384210,1739069464320,-600.17811727,0.00011095,2]
[352384211,1739069464330,-816.74,0.00011095,2]
[352384212,1739069464652,-500.0,0.00011095,2]
[352384213,1739069464672,-500.0,0.00011095,2]
[352384214,1739069464685,-150.0,0.00011097,2]
[352384215,1739069464694,-150.0,0.0001115,2]
[352384216,1739069464703,-995.5,0.00011153,2]
[352384217,1739069464713,-754.344585,0.00011153,2]
[352384218,1739069464723,-837.418506,0.00011153,2]
[352384219,1739069464733,-571.5,0.00011153,2]
[352384220,1739069464742,-1439.98,0.00011153,2]
[352384221,1739069464752,-1335.02,0.00011153,2]
[352384222,1739069464761,-559.11,0.00011153,2]
[352384223,1739069464772,-1093.73,0.00011153,2]
[352384224,1739069464781,-803.53,0.00011153,2]
[352384225,1739069464790,-1890.81,0.00011153,2]
[352384226,1739069464800,-1559.98,0.00011153,2]
[352384227,1739069464809,-967.4,0.00011153,2]
[352384228,1739069464819,-1029.95,0.00011153,2]
[352384229,1739069464828,-920.97,0.00011153,2]
[352384230,1739069464838,-1867.45,0.00011153,2]
[352384231,1739069464848,-789.25,0.00011153,2]
[352384232,1739069464857,-3744.99,0.00011153,2]
[352384233,1739069464867,-1560.02,0.00011153,2]
[352384234,1739069464876,-496.18697575,0.00011153,2]
[352384235,1739069464886,-736.32,0.00011153,2]
[352384236,1739069464895,-2494.58,0.00011153,2]
[352384237,1739069464904,-947.08,0.00011153,2]
[352384238,1739069464914,-1906.86,0.00011153,2]
[352384239,1739069464923,-1559.78,0.00011153,2]
[352384240,1739069464932,-3359.76,0.00011153,2]
[352384241,1739069464941,-1389.48,0.00011153,2]
[352384242,1739069464951,-1064.16,0.00011153,2]
[352384243,1739069464960,-630.3,0.00011153,2]
[352384244,1739069464970,-999.14,0.00011153,2]
[352384245,1739069464979,-1578.2,0.00011153,2]
[352384246,1739069464989,-1129.0,0.00011153,2]
[352384247,1739069464999,-1301.09,0.00011153,2]
[352384248,1739069465008,-1291.18,0.00011153,2]
[352384249,1739069465018,-1876.52,0.00011153,2]
[352384250,1739069465029,-1866.23,0.00011153,2]
[352384251,1739069465038,-2220.41,0.00011153,2]
[352384252,1739069465047,-1564.75,0.00011153,2]
[352384253,1739069465056,-926.11,0.00011153,2]
[352384254,1739069465065,-1329.14,0.00011153,2]
[352384255,1739069465075,-2507.15,0.00011153,2]
[352384256,1739069465084,-587.83,0.00011153,2]
[352384257,1739069465094,-853.77,0.00011153,2]
[352384258,1739069465103,-1628.99,0.00011153,2]
[352384259,1739069465113,-954.02,0.00011153,2]
[352384260,1739069465122,-938.82,0.00011153,2]
[352384261,1739069465132,-1573.35,0.00011153,2]
[352384262,1739069465141,-624.80377531,0.00011153,2]
[352384263,1739069465150,-1805.8,0.00011153,2]
[352384264,1739069465159,-774.74,0.00011153,2]
[352384265,1739069465168,-611.09,0.00011153,2]
[352384266,1739069465178,-500.0,0.00011153,2]
[352384267,1739069465187,-150.0,0.00011159,2]
[352384268,1739069465197,-150.0,0.00011193,2]
[352384269,1739069465206,-150.0,0.00011195,2]
[352384270,1739069465216,-150.0,0.000112,2]
[352384271,1739069465225,-16788.0,0.00011205,2]
[352384272,1739069465234,-500.0,0.00011221,2]
[352384273,1739069465246,-812.04,0.00011221,2]
[352384274,1739069465255,-500.0,0.00011221,2]
[352384275,1739069465265,-650.98,0.00011221,2]
[352384276,1739069465276,-725.66,0.00011221,2]
[352384277,1739069465287,-626.3,0.00011221,2]
[352384278,1739069465296,-686.17,0.00011221,2]
[352384279,1739069465307,-751.94,0.00011221,2]
[352384280,1739069465317,-809.56,0.00011221,2]
[352384281,1739069465327,-500.0,0.00011221,2]
[352384282,1739069465337,-850.73,0.00011221,2]
[352384283,1739069465347,-810.94,0.00011221,2]
[352384284,1739069465356,-500.0,0.00011221,2]
[352384285,1739069465365,-500.0,0.00011221,2]
[352384286,1739069465375,-819.57,0.00011221,2]
[352384287,1739069465385,-556.76,0.00011221,2]
[352384288,1739069465395,-881.6,0.00011221,2]
[352384289,1739069465404,-822.99,0.00011221,2]
[352384290,1739069465414,-720.56,0.00011221,2]
[352384291,1739069465425,-695.07,0.00011221,2]
[352384292,1739069465435,-788.71,0.00011221,2]
[352384293,1739069465445,-793.3,0.00011221,2]
[352384294,1739069465454,-775.16,0.00011221,2]
[352384295,1739069465464,-760.1,0.00011221,2]
[352384296,1739069465477,-646.22,0.00011221,2]